[Event "*** SCC Grand Prix: Titled Tuesday Blitz"]
[Site "Chess.com"]
[Date "2020.08.25"]
[Round "9"]
[White "Matveev_Vladimir"]
[Black "varacalli"]
[Result "1-0"]
[WhiteElo "2545"]
[BlackElo "2404"]
[TimeControl "180+1"]
[EndTime "11:47:50 PDT"]
[Termination "Matveev_Vladimir won by checkmate"]

1. d4 {[%clk 0:03:00.9]} 1... Nf6 {[%clk 0:02:58.1]} 2. c4 {[%clk 0:03:01.2]}
2... g6 {[%clk 0:02:58.3]} 3. Nc3 {[%clk 0:03:01.1]} 3... Bg7 {[%clk 0:02:58.5]}
4. e4 {[%clk 0:03:01.2]} 4... d6 {[%clk 0:02:58.7]} 5. Be2 {[%clk 0:03:01.5]}
5... O-O {[%clk 0:02:58.5]} 6. Nf3 {[%clk 0:03:02]} 6... c5 {[%clk 0:02:58.3]}
7. d5 {[%clk 0:02:59.1]} 7... e5 {[%clk 0:02:58.1]} 8. O-O {[%clk 0:02:52.7]}
8... Ne8 {[%clk 0:02:56.8]} 9. Ne1 {[%clk 0:02:29.9]} 9... f5 {[%clk 0:02:56.2]}
10. Nd3 {[%clk 0:02:30.2]} 10... Nf6 {[%clk 0:02:54.7]} 11. f3 {[%clk
0:02:16.1]} 11... f4 {[%clk 0:02:53.5]} 12. a3 {[%clk 0:02:11.3]} 12... Rf7
{[%clk 0:02:51.8]} 13. b4 {[%clk 0:02:11.1]} 13... b6 {[%clk 0:02:51.8]} 14.
bxc5 {[%clk 0:02:07.9]} 14... bxc5 {[%clk 0:02:51.5]} 15. Rb1 {[%clk 0:02:08.2]}
15... Bf8 {[%clk 0:02:46.8]} 16. Bd2 {[%clk 0:02:03.6]} 16... Nbd7 {[%clk
0:02:45.9]} 17. Qa4 {[%clk 0:01:58.6]} 17... Nb6 {[%clk 0:02:40.1]} 18. Qb3
{[%clk 0:01:51.1]} 18... g5 {[%clk 0:02:35.3]} 19. Nb5 {[%clk 0:01:49.2]} 19...
Nbd7 {[%clk 0:02:26.3]} 20. Qa4 {[%clk 0:01:35.6]} 20... g4 {[%clk 0:02:25.6]}
21. Kh1 {[%clk 0:01:18.9]} 21... g3 {[%clk 0:02:22]} 22. h3 {[%clk 0:01:11.4]}
22... Nb6 {[%clk 0:02:19.5]} 23. Qc2 {[%clk 0:01:05]} 23... Bxh3 {[%clk
0:02:18.7]} 24. gxh3 {[%clk 0:01:04.3]} 24... Qd7 {[%clk 0:02:04.9]} 25. Kg2
{[%clk 0:01:03.4]} 25... h6 {[%clk 0:02:05.2]} 26. a4 {[%clk 0:00:48.4]} 26...
Nh7 {[%clk 0:01:56.7]} 27. h4 {[%clk 0:00:48.4]} 27... Nc8 {[%clk 0:01:49.9]}
28. Ba5 {[%clk 0:00:35.8]} 28... Ne7 {[%clk 0:01:34.2]} 29. Nc7 {[%clk
0:00:33.4]} 29... Ng6 {[%clk 0:01:34.2]} 30. Rh1 {[%clk 0:00:33.4]} 30... Rc8
{[%clk 0:01:24.3]} 31. Ne6 {[%clk 0:00:31.5]} 31... Be7 {[%clk 0:01:24.3]} 32.
h5 {[%clk 0:00:20.3]} 32... Nh4+ {[%clk 0:01:24.5]} 33. Rxh4 {[%clk 0:00:19.9]}
33... Bxh4 {[%clk 0:01:25.4]} 34. Rh1 {[%clk 0:00:18.9]} 34... Bf6 {[%clk
0:01:19.4]} 35. Bc3 {[%clk 0:00:19]} 35... Re7 {[%clk 0:01:14.1]} 36. a5 {[%clk
0:00:18.8]} 36... Rb8 {[%clk 0:01:11.2]} 37. Rb1 {[%clk 0:00:17.1]} 37... Rxb1
{[%clk 0:01:06.6]} 38. Qxb1 {[%clk 0:00:18]} 38... Rxe6 {[%clk 0:01:07.5]} 39.
dxe6 {[%clk 0:00:17.9]} 39... Qxe6 {[%clk 0:01:08.4]} 40. Qb8+ {[%clk
0:00:13.9]} 40... Kf7 {[%clk 0:01:07.5]} 41. Qc7+ {[%clk 0:00:14]} 41... Be7
{[%clk 0:01:07.6]} 42. Nxe5+ {[%clk 0:00:12.2]} 42... dxe5 {[%clk 0:01:07.2]}
43. Qxe5 {[%clk 0:00:13.1]} 43... Qxe5 {[%clk 0:00:44.3]} 44. Bxe5 {[%clk
0:00:14]} 44... Nf6 {[%clk 0:00:45.2]} 45. Bxf4 {[%clk 0:00:13.1]} 45... Nxh5
{[%clk 0:00:44.2]} 46. Bb8 {[%clk 0:00:11.6]} 46... a6 {[%clk 0:00:41]} 47. f4
{[%clk 0:00:11.9]} 47... Bd8 {[%clk 0:00:39.6]} 48. Bxh5+ {[%clk 0:00:11.7]}
48... Ke6 {[%clk 0:00:35.3]} 49. Bg4+ {[%clk 0:00:11.1]} 49... Kf6 {[%clk
0:00:35.3]} 50. e5+ {[%clk 0:00:11.4]} 50... Ke7 {[%clk 0:00:35.4]} 51. f5
{[%clk 0:00:11.9]} 51... Bxa5 {[%clk 0:00:35.2]} 52. Bd6+ {[%clk 0:00:12.3]}
52... Kf7 {[%clk 0:00:34.5]} 53. Bh5+ {[%clk 0:00:11.4]} 53... Kg7 {[%clk
0:00:33.6]} 54. f6+ {[%clk 0:00:11.2]} 54... Kh7 {[%clk 0:00:34.1]} 55. f7
{[%clk 0:00:10.6]} 55... Bd8 {[%clk 0:00:34.2]} 56. f8=Q {[%clk 0:00:10.7]}
56... Bh4 {[%clk 0:00:35.1]} 57. Qf7+ {[%clk 0:00:10.8]} 57... Kh8 {[%clk
0:00:35.1]} 58. Bg6 {[%clk 0:00:11.3]} 58... Be7 {[%clk 0:00:35.5]} 59. Qh7#
{[%clk 0:00:12.2]} 1-0

[Event "*** SCC Grand Prix: Titled Tuesday Blitz"]
[Site "Chess.com"]
[Date "2020.08.25"]
[Round "9"]
[White "jamalm2"]
[Black "RusPakhom"]
[Result "0-1"]
[WhiteElo "1950"]
[BlackElo "2280"]
[TimeControl "180+1"]
[EndTime "11:47:50 PDT"]
[Termination "RusPakhom won by resignation"]

1. Nf3 {[%clk 0:03:00.9]} 1... d5 {[%clk 0:02:58.3]} 2. e3 {[%clk 0:03:00]} 2...
c5 {[%clk 0:02:56.3]} 3. c4 {[%clk 0:02:59.8]} 3... d4 {[%clk 0:02:55]} 4. exd4
{[%clk 0:02:52.4]} 4... cxd4 {[%clk 0:02:55.9]} 5. d3 {[%clk 0:02:52.5]} 5...
Nc6 {[%clk 0:02:56.2]} 6. Be2 {[%clk 0:02:52.3]} 6... e5 {[%clk 0:02:54.4]} 7.
O-O {[%clk 0:02:47.4]} 7... Bd6 {[%clk 0:02:53.7]} 8. Bg5 {[%clk 0:02:39.7]}
8... f6 {[%clk 0:02:53.2]} 9. Bh4 {[%clk 0:02:38.7]} 9... Nge7 {[%clk
0:02:52.7]} 10. Bg3 {[%clk 0:02:35.6]} 10... O-O {[%clk 0:02:52.1]} 11. Nfd2
{[%clk 0:02:33.7]} 11... Nf5 {[%clk 0:02:50.3]} 12. Ne4 {[%clk 0:02:32.2]} 12...
Bc7 {[%clk 0:02:47.5]} 13. a3 {[%clk 0:02:16.7]} 13... a5 {[%clk 0:02:46]} 14.
Nbd2 {[%clk 0:02:09.8]} 14... Nxg3 {[%clk 0:02:37.8]} 15. Nxg3 {[%clk
0:02:07.8]} 15... Qe7 {[%clk 0:02:35.5]} 16. Qc2 {[%clk 0:02:04.3]} 16... f5
{[%clk 0:02:34.2]} 17. c5 {[%clk 0:02:03.5]} 17... Be6 {[%clk 0:02:32.2]} 18.
Rab1 {[%clk 0:01:52.2]} 18... a4 {[%clk 0:02:31.7]} 19. Rbc1 {[%clk 0:01:47.8]}
19... Rad8 {[%clk 0:02:22]} 20. f4 {[%clk 0:01:46.5]} 20... exf4 {[%clk
0:02:10]} 21. Nh5 {[%clk 0:01:45.5]} 21... Qg5 {[%clk 0:02:09.9]} 22. Nc4 {[%clk
0:01:28.2]} 22... Bd5 {[%clk 0:02:07.9]} 23. Bd1 {[%clk 0:01:18.5]} 23... f3
{[%clk 0:02:07]} 24. Bxf3 {[%clk 0:01:15.2]} 24... Bxf3 {[%clk 0:02:06.8]} 25.
Rxf3 {[%clk 0:01:14.6]} 25... Qxh5 {[%clk 0:02:06.6]} 26. Rcf1 {[%clk
0:01:11.9]} 26... Qxh2+ {[%clk 0:02:05.6]} 27. Kf2 {[%clk 0:01:09.8]} 27... Qh4+
{[%clk 0:02:03.4]} 28. Ke2 {[%clk 0:01:00.2]} 28... Rfe8+ {[%clk 0:02:00.7]} 29.
Kd1 {[%clk 0:00:59.7]} 29... Re7 {[%clk 0:01:51.3]} 30. Nd6 {[%clk 0:00:58.3]}
30... Bxd6 {[%clk 0:01:18.7]} 31. cxd6 {[%clk 0:00:56]} 31... Rxd6 {[%clk
0:01:18.4]} 32. Qc4+ {[%clk 0:00:55.2]} 32... Kh8 {[%clk 0:01:16.8]} 33. Rxf5
{[%clk 0:00:54.4]} 33... Rf6 {[%clk 0:01:16.8]} 34. Rxf6 {[%clk 0:00:45.7]}
34... gxf6 {[%clk 0:01:17.7]} 35. Qc5 {[%clk 0:00:35.5]} 35... Qg4+ {[%clk
0:01:12.2]} 36. Kc1 {[%clk 0:00:27.3]} 36... Qg5+ {[%clk 0:01:12.3]} 37. Qxg5
{[%clk 0:00:23.5]} 37... fxg5 {[%clk 0:01:13.2]} 38. Rf5 {[%clk 0:00:20.3]}
38... h6 {[%clk 0:01:13.2]} 39. Rf8+ {[%clk 0:00:17.2]} 39... Kg7 {[%clk
0:01:13.2]} 40. Ra8 {[%clk 0:00:16.1]} 40... Re2 {[%clk 0:01:12.1]} 41. Rxa4
{[%clk 0:00:13.6]} 41... Rxg2 {[%clk 0:01:12]} 42. Rc4 {[%clk 0:00:08]} 42...
Rf2 {[%clk 0:01:07.4]} 43. b4 {[%clk 0:00:07.1]} 43... Rf7 {[%clk 0:00:59.7]}
44. b5 {[%clk 0:00:06.4]} 44... Ne5 {[%clk 0:00:58.3]} 45. Rxd4 {[%clk
0:00:06.2]} 45... g4 {[%clk 0:00:58.2]} 46. Rd5 {[%clk 0:00:03.4]} 46... g3
{[%clk 0:00:51.8]} 47. Rxe5 {[%clk 0:00:02.9]} 47... g2 {[%clk 0:00:52.1]} 48.
Re1 {[%clk 0:00:02.6]} 48... Rf1 {[%clk 0:00:52.3]} 49. Kd2 {[%clk 0:00:01.6]}
49... Rxe1 {[%clk 0:00:49.5]} 0-1

[Event "*** SCC Grand Prix: Titled Tuesday Blitz"]
[Site "Chess.com"]
[Date "2020.08.25"]
[Round "9"]
[White "Mikhail_Golubev"]
[Black "Unkreativ3"]
[Result "1/2-1/2"]
[WhiteElo "2618"]
[BlackElo "2515"]
[TimeControl "180+1"]
[EndTime "11:47:51 PDT"]
[Termination "Game drawn - insufficient material"]

1. e4 {[%clk 0:03:00.9]} 1... c5 {[%clk 0:03:00.2]} 2. Nf3 {[%clk 0:03:00.3]}
2... Nc6 {[%clk 0:03:00.6]} 3. Nc3 {[%clk 0:02:56.8]} 3... g6 {[%clk 0:03:00.1]}
4. d4 {[%clk 0:02:55.8]} 4... cxd4 {[%clk 0:03:01]} 5. Nxd4 {[%clk 0:02:55.9]}
5... Bg7 {[%clk 0:03:01.9]} 6. Be3 {[%clk 0:02:56.1]} 6... Nf6 {[%clk
0:03:02.1]} 7. Nxc6 {[%clk 0:02:55.4]} 7... bxc6 {[%clk 0:03:01.8]} 8. e5 {[%clk
0:02:55.8]} 8... Ng8 {[%clk 0:03:02.2]} 9. Bd4 {[%clk 0:02:55.4]} 9... Nh6
{[%clk 0:03:02.4]} 10. e6 {[%clk 0:02:54.9]} 10... O-O {[%clk 0:03:02.5]} 11.
Bxg7 {[%clk 0:02:54.6]} 11... Kxg7 {[%clk 0:03:03.4]} 12. Qd4+ {[%clk
0:02:54.8]} 12... f6 {[%clk 0:03:03.1]} 13. exd7 {[%clk 0:02:54.3]} 13... Bxd7
{[%clk 0:03:03.8]} 14. O-O-O {[%clk 0:02:52.9]} 14... Bg4 {[%clk 0:03:00.1]} 15.
f3 {[%clk 0:02:41.5]} 15... Qxd4 {[%clk 0:02:58.5]} 16. Rxd4 {[%clk 0:02:41.6]}
16... Be6 {[%clk 0:02:58.7]} 17. Re4 {[%clk 0:02:31.5]} 17... Kf7 {[%clk
0:02:56.7]} 18. Bc4 {[%clk 0:02:28.5]} 18... Bxc4 {[%clk 0:02:56.1]} 19. Rxc4
{[%clk 0:02:28.8]} 19... Rac8 {[%clk 0:02:56.6]} 20. Rd1 {[%clk 0:02:26.8]}
20... Nf5 {[%clk 0:02:45.1]} 21. Rd7 {[%clk 0:02:25.5]} 21... a6 {[%clk
0:02:23]} 22. Ra4 {[%clk 0:02:13]} 22... Ra8 {[%clk 0:02:14.8]} 23. Rc7 {[%clk
0:02:10.2]} 23... Rfc8 {[%clk 0:02:07.9]} 24. Rxa6 {[%clk 0:01:57.5]} 24... Rxc7
{[%clk 0:02:03.7]} 25. Rxa8 {[%clk 0:01:56.9]} 25... Nh4 {[%clk 0:02:04]} 26. a4
{[%clk 0:01:53.5]} 26... Nxg2 {[%clk 0:02:03.1]} 27. a5 {[%clk 0:01:53.8]} 27...
Ne3 {[%clk 0:01:50.1]} 28. a6 {[%clk 0:01:47.8]} 28... Nc4 {[%clk 0:01:49.5]}
29. a7 {[%clk 0:01:31.9]} 29... Ke6 {[%clk 0:01:48.7]} 30. b3 {[%clk 0:01:28.5]}
30... Nd6 {[%clk 0:01:40.2]} 31. Na4 {[%clk 0:01:24.6]} 31... Nb5 {[%clk
0:01:37.6]} 32. Nc5+ {[%clk 0:01:17.9]} 32... Kf5 {[%clk 0:01:34.6]} 33. Rh8
{[%clk 0:00:59.8]} 33... Rxa7 {[%clk 0:01:31.7]} 34. Rxh7 {[%clk 0:01:00]} 34...
Nd4 {[%clk 0:01:29.1]} 35. Kb2 {[%clk 0:00:45.1]} 35... Nxf3 {[%clk 0:01:25.9]}
36. c4 {[%clk 0:00:44.1]} 36... g5 {[%clk 0:01:12.1]} 37. b4 {[%clk 0:00:42.6]}
37... Ke5 {[%clk 0:01:04]} 38. b5 {[%clk 0:00:34.9]} 38... cxb5 {[%clk
0:01:03.6]} 39. cxb5 {[%clk 0:00:35]} 39... Ra5 {[%clk 0:00:53.6]} 40. Rxe7+
{[%clk 0:00:33.6]} 40... Kd6 {[%clk 0:00:53.9]} 41. Nb7+ {[%clk 0:00:33.2]}
41... Kxe7 {[%clk 0:00:54.2]} 42. Nxa5 {[%clk 0:00:33.3]} 42... Kd7 {[%clk
0:00:52.9]} 43. Nb3 {[%clk 0:00:22.1]} 43... Nxh2 {[%clk 0:00:43.4]} 44. Nc5+
{[%clk 0:00:22.6]} 44... Kc7 {[%clk 0:00:42.8]} 45. Ne4 {[%clk 0:00:22]} 45...
g4 {[%clk 0:00:30.8]} 46. Nxf6 {[%clk 0:00:20.9]} 46... g3 {[%clk 0:00:31.5]}
47. Nd5+ {[%clk 0:00:21.5]} 47... Kd6 {[%clk 0:00:28.9]} 48. Ne3 {[%clk
0:00:20.9]} 48... Kc5 {[%clk 0:00:24.5]} 49. Kc3 {[%clk 0:00:20.2]} 49... Kxb5
{[%clk 0:00:22.4]} 50. Kd3 {[%clk 0:00:20.7]} 50... Kc5 {[%clk 0:00:17.1]} 51.
Ke4 {[%clk 0:00:20.6]} 51... Ng4 {[%clk 0:00:16.6]} 52. Kf3 {[%clk 0:00:18.9]}
52... Nxe3 {[%clk 0:00:16.8]} 53. Kxg3 {[%clk 0:00:19.1]} 1/2-1/2

[Event "*** SCC Grand Prix: Titled Tuesday Blitz"]
[Site "Chess.com"]
[Date "2020.08.25"]
[Round "9"]
[White "AttackSparrow"]
[Black "anon102030"]
[Result "0-1"]
[WhiteElo "2417"]
[BlackElo "2739"]
[TimeControl "180+1"]
[EndTime "11:47:52 PDT"]
[Termination "anon102030 won on time"]

1. e4 {[%clk 0:03:00.9]} 1... e5 {[%clk 0:02:58.1]} 2. Nc3 {[%clk 0:03:00.6]}
2... Nc6 {[%clk 0:02:57]} 3. Bc4 {[%clk 0:03:00.3]} 3... g6 {[%clk 0:02:56]} 4.
d3 {[%clk 0:02:59.6]} 4... Bg7 {[%clk 0:02:56]} 5. f4 {[%clk 0:02:59.6]} 5... d6
{[%clk 0:02:55.9]} 6. Nf3 {[%clk 0:02:59.7]} 6... Nf6 {[%clk 0:02:49]} 7. O-O
{[%clk 0:02:58.1]} 7... h6 {[%clk 0:02:47.6]} 8. Kh1 {[%clk 0:02:56.8]} 8... O-O
{[%clk 0:02:45.2]} 9. fxe5 {[%clk 0:02:53.9]} 9... Nxe5 {[%clk 0:02:39.8]} 10.
Nxe5 {[%clk 0:02:53.4]} 10... dxe5 {[%clk 0:02:40.7]} 11. Qf3 {[%clk 0:02:48.7]}
11... Kh7 {[%clk 0:02:27.3]} 12. Be3 {[%clk 0:02:14.1]} 12... Qe7 {[%clk
0:02:24.7]} 13. h3 {[%clk 0:02:07.6]} 13... c6 {[%clk 0:02:19.3]} 14. Qf2 {[%clk
0:02:05.4]} 14... b6 {[%clk 0:02:16.1]} 15. a4 {[%clk 0:02:03.7]} 15... Be6
{[%clk 0:02:11.8]} 16. a5 {[%clk 0:02:01.8]} 16... Bxc4 {[%clk 0:02:06.5]} 17.
dxc4 {[%clk 0:02:02.7]} 17... Qe6 {[%clk 0:02:05.8]} 18. axb6 {[%clk 0:01:59.3]}
18... axb6 {[%clk 0:02:06.7]} 19. b3 {[%clk 0:01:56.9]} 19... c5 {[%clk
0:01:57.3]} 20. Qh4 {[%clk 0:01:46]} 20... Nd7 {[%clk 0:01:47.2]} 21. Nd5 {[%clk
0:01:31.3]} 21... Rxa1 {[%clk 0:01:45.1]} 22. Rxa1 {[%clk 0:01:32.2]} 22... f5
{[%clk 0:01:44.9]} 23. Ra7 {[%clk 0:01:28.2]} 23... f4 {[%clk 0:01:33.2]} 24.
Bd2 {[%clk 0:01:17]} 24... f3 {[%clk 0:01:19.2]} 25. gxf3 {[%clk 0:01:05.8]}
25... Rxf3 {[%clk 0:01:20.1]} 26. Kg2 {[%clk 0:01:06.1]} 26... Rf7 {[%clk
0:01:19.4]} 27. Qg4 {[%clk 0:01:03.8]} 27... Qd6 {[%clk 0:01:16.4]} 28. Qg3
{[%clk 0:00:53.5]} 28... Qe6 {[%clk 0:01:12.1]} 29. Bc3 {[%clk 0:00:51.9]} 29...
h5 {[%clk 0:01:08.6]} 30. Rb7 {[%clk 0:00:47]} 30... Bh6 {[%clk 0:01:03]} 31.
Qd3 {[%clk 0:00:39.4]} 31... g5 {[%clk 0:00:59.5]} 32. Rxd7 {[%clk 0:00:34.5]}
32... Rxd7 {[%clk 0:00:54.6]} 33. Nf6+ {[%clk 0:00:34.6]} 33... Qxf6 {[%clk
0:00:50.2]} 34. Qxd7+ {[%clk 0:00:34.7]} 34... Bg7 {[%clk 0:00:48.3]} 35. Qe8
{[%clk 0:00:09.6]} 35... Kh6 {[%clk 0:00:38.4]} 36. Qc8 {[%clk 0:00:09.3]} 36...
Qg6 {[%clk 0:00:34.2]} 37. Qb7 {[%clk 0:00:07.5]} 37... g4 {[%clk 0:00:31]} 38.
hxg4 {[%clk 0:00:06.6]} 38... Qxg4+ {[%clk 0:00:27.7]} 39. Kf2 {[%clk
0:00:06.3]} 39... Qg6 {[%clk 0:00:25.3]} 40. Qd5 {[%clk 0:00:03.9]} 40... h4
{[%clk 0:00:22.3]} 41. Bd2+ {[%clk 0:00:03.7]} 41... Kh5 {[%clk 0:00:20.5]} 42.
Qd3 {[%clk 0:00:02.5]} 42... Qg4 {[%clk 0:00:13.2]} 43. Qf3 {[%clk 0:00:02.5]}
43... Qxf3+ {[%clk 0:00:08.1]} 44. Kxf3 {[%clk 0:00:03.4]} 44... Bf6 {[%clk
0:00:08]} 45. b4 {[%clk 0:00:01]} 45... Bg5 {[%clk 0:00:08.9]} 0-1

[Event "*** SCC Grand Prix: Titled Tuesday Blitz"]
[Site "Chess.com"]
[Date "2020.08.25"]
[Round "9"]
[White "grandcoach"]
[Black "mfwagnerpeixoto"]
[Result "0-1"]
[WhiteElo "2075"]
[BlackElo "2219"]
[TimeControl "180+1"]
[EndTime "11:47:52 PDT"]
[Termination "mfwagnerpeixoto won on time"]

1. e4 {[%clk 0:03:00.9]} 1... c5 {[%clk 0:02:55.9]} 2. b4 {[%clk 0:02:59.1]}
2... cxb4 {[%clk 0:02:53.7]} 3. a3 {[%clk 0:02:59.6]} 3... d5 {[%clk 0:02:54.3]}
4. exd5 {[%clk 0:02:56.9]} 4... Nf6 {[%clk 0:02:52.5]} 5. axb4 {[%clk
0:02:50.3]} 5... Nxd5 {[%clk 0:02:52.2]} 6. b5 {[%clk 0:02:50.9]} 6... e6 {[%clk
0:02:50.3]} 7. Nf3 {[%clk 0:02:49.1]} 7... Be7 {[%clk 0:02:49.9]} 8. Bb2 {[%clk
0:02:48.6]} 8... O-O {[%clk 0:02:49.4]} 9. Nc3 {[%clk 0:02:39.7]} 9... Bf6
{[%clk 0:02:40.3]} 10. Bd3 {[%clk 0:02:24.5]} 10... Nxc3 {[%clk 0:02:39.7]} 11.
Bxc3 {[%clk 0:02:25.1]} 11... Bxc3 {[%clk 0:02:38.6]} 12. dxc3 {[%clk 0:02:26]}
12... Qc7 {[%clk 0:02:24]} 13. c4 {[%clk 0:02:14.1]} 13... Nd7 {[%clk
0:02:15.7]} 14. O-O {[%clk 0:02:09.8]} 14... Nf6 {[%clk 0:02:11.5]} 15. Re1
{[%clk 0:02:07.1]} 15... b6 {[%clk 0:02:00.2]} 16. Ne5 {[%clk 0:01:59.7]} 16...
Bb7 {[%clk 0:01:59.1]} 17. Qe2 {[%clk 0:01:46.5]} 17... Rfd8 {[%clk 0:01:56.4]}
18. h4 {[%clk 0:01:32.3]} 18... Rd4 {[%clk 0:01:48.6]} 19. h5 {[%clk 0:01:26.6]}
19... Rh4 {[%clk 0:01:47.2]} 20. Rad1 {[%clk 0:01:06]} 20... Rxh5 {[%clk
0:01:38]} 21. Ng4 {[%clk 0:00:53.8]} 21... Nxg4 {[%clk 0:01:33.2]} 22. Qxg4
{[%clk 0:00:54.7]} 22... Qh2+ {[%clk 0:01:24.9]} 23. Kf1 {[%clk 0:00:54.9]}
23... Rh4 {[%clk 0:00:46.7]} 24. Qg3 {[%clk 0:00:53.8]} 24... Qxg3 {[%clk
0:00:44.4]} 25. fxg3 {[%clk 0:00:54.7]} 25... Rh2 {[%clk 0:00:44.1]} 26. Be4
{[%clk 0:00:50]} 26... Bxe4 {[%clk 0:00:43.2]} 27. Rxe4 {[%clk 0:00:49.8]} 27...
Rh1+ {[%clk 0:00:33.6]} 28. Ke2 {[%clk 0:00:49.5]} 28... Rxd1 {[%clk 0:00:34.5]}
29. Kxd1 {[%clk 0:00:49.9]} 29... Rd8+ {[%clk 0:00:32]} 30. Ke2 {[%clk
0:00:49.7]} 30... g6 {[%clk 0:00:32.4]} 31. g4 {[%clk 0:00:45.1]} 31... h6
{[%clk 0:00:30.7]} 32. c3 {[%clk 0:00:34.3]} 32... Kg7 {[%clk 0:00:30.7]} 33.
Rf4 {[%clk 0:00:25.2]} 33... f5 {[%clk 0:00:29.2]} 34. gxf5 {[%clk 0:00:20.8]}
34... gxf5 {[%clk 0:00:30.1]} 35. Rf1 {[%clk 0:00:17.8]} 35... Kf6 {[%clk
0:00:27.6]} 36. Ra1 {[%clk 0:00:16.6]} 36... Rd7 {[%clk 0:00:27.3]} 37. Rh1
{[%clk 0:00:16.4]} 37... Kg6 {[%clk 0:00:26.4]} 38. Ke3 {[%clk 0:00:16.3]} 38...
e5 {[%clk 0:00:26.1]} 39. Ra1 {[%clk 0:00:11.9]} 39... Rc7 {[%clk 0:00:25.8]}
40. Kd3 {[%clk 0:00:11.4]} 40... Kg5 {[%clk 0:00:25.1]} 41. Re1 {[%clk
0:00:08.3]} 41... Kf4 {[%clk 0:00:21.3]} 42. Rf1+ {[%clk 0:00:08]} 42... Kg4
{[%clk 0:00:21.5]} 43. Re1 {[%clk 0:00:07.3]} 43... Rd7+ {[%clk 0:00:21.1]} 44.
Kc2 {[%clk 0:00:06.7]} 44... e4 {[%clk 0:00:21.2]} 45. Rh1 {[%clk 0:00:06.3]}
45... h5 {[%clk 0:00:19.9]} 46. Rf1 {[%clk 0:00:04.3]} 46... f4 {[%clk
0:00:19.5]} 47. Re1 {[%clk 0:00:03.9]} 47... e3 {[%clk 0:00:19.5]} 48. Rf1
{[%clk 0:00:03.1]} 48... Kg3 {[%clk 0:00:17.1]} 49. Rh1 {[%clk 0:00:01.6]} 49...
e2 {[%clk 0:00:16.1]} 0-1

[Event "*** SCC Grand Prix: Titled Tuesday Blitz"]
[Site "Chess.com"]
[Date "2020.08.25"]
[Round "9"]
[White "A-Fier"]
[Black "Alexsur1981"]
[Result "1-0"]
[WhiteElo "2765"]
[BlackElo "2682"]
[TimeControl "180+1"]
[EndTime "11:47:53 PDT"]
[Termination "A-Fier won on time"]

1. e4 {[%clk 0:03:00.9]} 1... c5 {[%clk 0:02:57.7]} 2. Nf3 {[%clk 0:03:01.3]}
2... e6 {[%clk 0:02:58.2]} 3. d4 {[%clk 0:03:01.8]} 3... cxd4 {[%clk 0:02:59.1]}
4. Nxd4 {[%clk 0:03:02.4]} 4... Nf6 {[%clk 0:02:59.8]} 5. Nc3 {[%clk 0:03:02.8]}
5... Nc6 {[%clk 0:03:00.4]} 6. Nxc6 {[%clk 0:03:02]} 6... bxc6 {[%clk
0:03:01.3]} 7. e5 {[%clk 0:03:02.3]} 7... Nd5 {[%clk 0:03:01.9]} 8. Ne4 {[%clk
0:03:03]} 8... Qc7 {[%clk 0:03:02.6]} 9. f4 {[%clk 0:03:03.2]} 9... Rb8 {[%clk
0:03:03.3]} 10. a3 {[%clk 0:03:02.1]} 10... Qb6 {[%clk 0:03:02.6]} 11. c4 {[%clk
0:02:49.4]} 11... Ne3 {[%clk 0:03:02.2]} 12. Qd3 {[%clk 0:02:48]} 12... Nxf1
{[%clk 0:02:56.7]} 13. Rxf1 {[%clk 0:02:48.9]} 13... Qb3 {[%clk 0:02:56.8]} 14.
Nc3 {[%clk 0:02:47.9]} 14... c5 {[%clk 0:02:53.5]} 15. f5 {[%clk 0:02:46.2]}
15... Bb7 {[%clk 0:02:51.8]} 16. Bg5 {[%clk 0:02:40.7]} 16... Bxg2 {[%clk
0:02:21.5]} 17. fxe6 {[%clk 0:02:35.1]} 17... fxe6 {[%clk 0:02:21.3]} 18. Rd1
{[%clk 0:02:18.7]} 18... Bc6 {[%clk 0:02:18.7]} 19. Rf2 {[%clk 0:01:44.8]} 19...
Qb7 {[%clk 0:02:17.6]} 20. Qe3 {[%clk 0:01:35.9]} 20... h6 {[%clk 0:01:59.6]}
21. Bh4 {[%clk 0:01:35.3]} 21... g5 {[%clk 0:01:57.6]} 22. Bg3 {[%clk
0:01:35.7]} 22... Be7 {[%clk 0:01:56.4]} 23. Qd3 {[%clk 0:01:35.6]} 23... Kd8
{[%clk 0:01:47.4]} 24. Qg6 {[%clk 0:01:34.7]} 24... Kc7 {[%clk 0:01:43]} 25. Qf7
{[%clk 0:01:22.4]} 25... Rbe8 {[%clk 0:01:37.3]} 26. Nd5+ {[%clk 0:01:22.7]}
26... exd5 {[%clk 0:01:23.3]} 27. cxd5 {[%clk 0:01:23.6]} 27... Kc8 {[%clk
0:01:22.6]} 28. dxc6 {[%clk 0:01:22.1]} 28... Qxc6 {[%clk 0:01:23.5]} 29. Qc4
{[%clk 0:01:00.4]} 29... Rhf8 {[%clk 0:01:21.8]} 30. Rd5 {[%clk 0:00:54.5]}
30... h5 {[%clk 0:01:03.2]} 31. Rfd2 {[%clk 0:00:51.5]} 31... h4 {[%clk
0:00:53.6]} 32. Bf2 {[%clk 0:00:51.9]} 32... d6 {[%clk 0:00:53.9]} 33. Kd1
{[%clk 0:00:51.7]} 33... dxe5 {[%clk 0:00:51.2]} 34. Bxc5 {[%clk 0:00:51.5]}
34... Rf4 {[%clk 0:00:40.9]} 35. Qc3 {[%clk 0:00:47.3]} 35... g4 {[%clk
0:00:19.8]} 36. Bxe7 {[%clk 0:00:45.5]} 36... Qxc3 {[%clk 0:00:18.2]} 37. Rd8+
{[%clk 0:00:46]} 37... Rxd8 {[%clk 0:00:18.1]} 38. Rxd8+ {[%clk 0:00:46]} 38...
Kc7 {[%clk 0:00:19]} 39. bxc3 {[%clk 0:00:46.8]} 39... g3 {[%clk 0:00:17.5]} 40.
hxg3 {[%clk 0:00:46.3]} 40... hxg3 {[%clk 0:00:14.2]} 41. Rg8 {[%clk 0:00:46.8]}
41... Rf3 {[%clk 0:00:14.1]} 42. Kd2 {[%clk 0:00:45.6]} 42... e4 {[%clk
0:00:13.7]} 43. Bc5 {[%clk 0:00:45.8]} 43... a6 {[%clk 0:00:12.9]} 44. Bd4
{[%clk 0:00:43.2]} 44... Kc6 {[%clk 0:00:12.5]} 45. a4 {[%clk 0:00:43.3]} 45...
Kd5 {[%clk 0:00:12.5]} 46. Kc2 {[%clk 0:00:42.7]} 46... Kc4 {[%clk 0:00:07.2]}
47. Rc8+ {[%clk 0:00:42.6]} 47... Kd5 {[%clk 0:00:06.9]} 48. Rc5+ {[%clk
0:00:43.4]} 48... Kd6 {[%clk 0:00:07.3]} 49. Rg5 {[%clk 0:00:44.3]} 49... Kc6
{[%clk 0:00:05.8]} 50. Kb3 {[%clk 0:00:30.1]} 50... Kd6 {[%clk 0:00:05.9]} 51.
Kc4 {[%clk 0:00:29.8]} 51... Kc6 {[%clk 0:00:05.8]} 52. Be5 {[%clk 0:00:28.7]}
1-0